fUSD/lending_fUSD_20240103
["ID","MTS","AMOUNT","RATE_DAILY","PERIOD"]
[309995052,1704282657352,-500.0,0.00032876,2]
[309995053,1704282657362,-1092.43,0.00032876,2]
[309995054,1704282657372,-261.41474233,0.00032876,2]
[309995055,1704282662461,155.29516755,0.00023288,2]
[309995056,1704282663021,484.81888724,0.00023288,2]
[309995057,1704282665913,1094.42498153,0.00023288,2]
[309995058,1704282667007,849.11296638,0.00023288,4]
[309995059,1704282683902,375.36666791,0.00023288,2]
[309995060,1704282686998,298.93277042,0.00023288,4]
[309995099,1704282833883,2444.74934534,0.00023,2]
[309995100,1704282833909,31245.82811908,0.00023,2]
[309995105,1704282851037,499.999999,0.0002,2]
[309995106,1704282867708,1146.0,0.00022,2]
[309995152,1704283202355,-1000.0,0.0002498,2]
[309995153,1704283202899,-703.69901651,0.0002498,2]
[309995154,1704283202922,-296.30098349,0.00024981,2]
[309995155,1704283203417,-323.91097868,0.00024981,2]
[309995156,1704283203438,-280.27668862,0.00024982,2]
[309995157,1704283203459,-395.8123327,0.00024982,2]
[309995158,1704283204370,-1000.0,0.00024982,2]
[309995159,1704283205018,-1000.0,0.00024982,2]
[309995160,1704283205631,-1000.0,0.0002498,2]
[309995161,1704283206256,-1000.0,0.0002498,2]
[309995162,1704283206853,-1000.0,0.0002498,2]
[309995163,1704283207430,-300.35878783,0.00024979,2]
[309995164,1704283207452,-35.94965715,0.0002498,2]
[309995165,1704283207474,-663.69155502,0.00024982,2]
[309995166,1704283208023,-121.80188385,0.00024982,2]
[309995169,1704283218518,-2468.0415723,0.00024983,2]
[309995170,1704283218540,-340.60746913,0.00025,2]
[309995171,1704283218561,-290.96684543,0.00025,2]
[309995172,1704283218584,-737.08,0.00025885,2]
[309995173,1704283218605,-724.0,0.00026301,2]
[309995174,1704283218626,-150.0,0.00026395,2]
[309995175,1704283218650,-289.30411314,0.00026396,2]
[309995176,1704283235074,-33.12588686,0.00026396,2]
[309995177,1704283235097,-727.53,0.00026886,2]
[309995178,1704283235118,-728.57,0.00026909,2]
[309995179,1704283235142,-250.0,0.00027,3]
[309995180,1704283235164,-440.09,0.00027,2]
[309995181,1704283235185,-250.0,0.000274,2]
[309995182,1704283235209,-250.0,0.00028113,2]
[309995183,1704283235230,-250.0,0.00028155,2]
[309995184,1704283235253,-956.84,0.00028498,7]
[309995185,1704283235278,-113.84411314,0.00028529,15]
[309995188,1704283355125,564.83105628,0.00028529,30]
[309995193,1704283405125,499.46515759,0.00028529,30]
[309995263,1704283599611,236.7,0.00021,3]
[309995325,1704283702788,530.94399805,0.00021,2]
[309995332,1704283718689,530.94399805,0.00021,2]
[309995339,1704283734692,530.94399805,0.00021,2]
[309995398,1704283756702,529.68432931,0.00021,2]
[309995457,1704283832584,-173.49916985,0.00024118,2]
[309995460,1704283832596,-155.0,0.00024119,2]
[309995461,1704283832607,-177.48161799,0.0002412,2]
[309995463,1704283832622,-322.51838201,0.0002412,2]
[309995464,1704283832636,-92.1752615,0.00025787,4]
[309995467,1704283832652,-469.145,0.00025787,4]
[309995468,1704283832667,-3199.74271557,0.00025787,4]
[309995469,1704283832682,-1244.4653011,0.00025788,2]
[309995470,1704283832693,-366.99,0.00025789,2]
[309995471,1704283832706,-731.88,0.00027037,2]
[309995472,1704283832718,-254.76657037,0.00027447,2]
[309995473,1704283832731,-715.35,0.00027548,2]
[309995474,1704283832742,-1262.92341296,0.00027605,2]
[309995475,1704283832757,-1261.16396489,0.00027605,2]
[309995476,1704283832775,-21375.91262215,0.00027605,2]
[309995477,1704283832787,-250.0,0.00027633,2]
[309995478,1704283832798,-365.42,0.00027703,15]
[309995479,1704283832810,-170.48,0.00027706,2]
[309995480,1704283832822,-499.99,0.00027706,2]
[309995481,1704283832833,-940.29,0.00027706,2]
[309995482,1704283832849,-583.4,0.00027706,2]
[309995483,1704283832861,-418.0569439,0.00027707,2]
[309995484,1704283832872,-155.76728802,0.00027721,2]
[309995485,1704283832884,-155.5857986,0.00027721,2]
[309995486,1704283832899,-155.86535214,0.00027721,7]
[309995487,1704283832911,-300.0,0.00027722,2]
[309995488,1704283832922,-150.0,0.00027722,2]
[309995489,1704283832936,-13138.4,0.00027723,2]
[309995490,1704283832951,-254.76657037,0.00027727,2]
[309995491,1704283832962,-1955.06,0.00027727,2]
[309995492,1704283832974,-1852.42,0.00027819,2]
[309995493,1704283832985,-841.5,0.00027864,2]
[309995494,1704283832996,-4627.49,0.00027888,2]
[309995495,1704283833007,-500.0,0.00027891,2]
[309995496,1704283833018,-249.62,0.00027898,2]
[309995497,1704283833029,-534.09,0.00027917,2]
[309995498,1704283833041,-658.71,0.0002792,2]
[309995499,1704283833055,-500.0,0.00027928,2]
[309995500,1704283833067,-249.62,0.00027974,2]
[309995501,1704283833080,-254.76657037,0.00028008,2]
[309995502,1704283833091,-3581.22,0.00028026,2]
[309995503,1704283833103,-249.62,0.00028051,2]
[309995504,1704283833114,-366.99,0.00028052,2]
[309995505,1704283833128,-155.0,0.00028102,2]
[309995506,1704283833140,-733.07,0.00028115,2]
[309995507,1704283833152,-714.27,0.00028117,2]
[309995508,1704283833165,-254.6,0.00028118,2]
[309995509,1704283833180,-1000.0,0.00028118,2]
[309995510,1704283833191,-249.62,0.00028127,2]
[309995511,1704283833204,-150.0,0.00028129,2]
[309995512,1704283833215,-448.62,0.00028169,2]
[309995513,1704283833226,-249.62,0.00028204,2]
[309995514,1704283833239,-737.02,0.00028208,2]
[309995515,1704283833250,-195.0,0.00028223,2]
[309995516,1704283833265,-249.62,0.0002828,2]
[309995517,1704283833277,-254.76657037,0.00028288,2]
[309995518,1704283833288,-162.11818951,0.00028313,2]
[309995519,1704283833300,-2073.10409458,0.00028356,10]
[309995520,1704283833315,-49.43570542,0.00028356,10]
[309995521,1704283833327,-249.62,0.00028357,2]
[309995522,1704283833339,-65.30829466,0.0002837,2]
[309995523,1704283833353,-2214.53631722,0.0002837,2]
[309995524,1704283833372,-188.22789944,0.00028377,2]
[309995525,1704283833384,-168.73564808,0.00028377,2]
[309995526,1704283833396,-727.94,0.00028378,2]
[309995527,1704283833408,-1000.0,0.00028378,2]
[309995528,1704283833420,-788.36932975,0.00028379,2]
[309995529,1704283833439,-2467.05007009,0.00028379,2]
[309995530,1704283833451,-785.14073542,0.00028379,2]
[309995531,1704283833466,-258.75,0.00028379,2]
[309995532,1704283833484,-8192.62444,0.00028379,2]
[309995533,1704283833506,-497.93346247,0.00028379,2]
[309995534,1704283833521,-257.69497186,0.00028379,2]
[309995535,1704283833536,-3778.27763822,0.00028379,2]
[309995541,1704283833662,-267.3,0.00028379,2]
[309995543,1704283833681,-1722.88490788,0.00028379,2]
[309995545,1704283833698,-1387.4499996,0.00028379,2]
[309995547,1704283833716,-1450.3596528,0.00028379,2]
[309995550,1704283833732,-584.55879679,0.00028379,2]
[309995552,1704283833747,-1245.03,0.00028379,2]
[309995555,1704283833763,-681.38137975,0.00028379,2]
[309995559,1704283833776,-323.61862025,0.0002838,2]
[309995562,1704283833791,-386.96137975,0.0002838,2]
[309995565,1704283833805,-189.03862025,0.00028386,2]
[309995568,1704283833821,-11.52831317,0.00028386,2]
[309995573,1704283833834,-2453.650845,0.00028401,2]
[309995575,1704283833850,-1710.85918071,0.00028401,2]
[309995577,1704283833863,-76.94081929,0.00028402,2]
[309995579,1704283833879,-412.88685621,0.00028402,2]
[309995581,1704283833895,-243.1523245,0.00028402,2]
[309995583,1704283833907,-642.0784955,0.00028403,7]
[309995585,1704283833925,-707.8615045,0.00028403,7]
[309995587,1704283833938,-265.03504503,0.00028403,2]
[309995589,1704283833952,-158.05,0.00028413,2]
[309995591,1704283833965,-249.62,0.00028433,2]
[309995594,1704283833977,-348.66,0.00028487,2]
[309995596,1704283833989,-160.88894591,0.000285,2]
[309995598,1704283834009,-249.62,0.0002851,2]
[309995601,1704283834023,-28767.17948469,0.00028529,2]
[309995603,1704283834035,-200.0,0.0002853,2]
[309995605,1704283834052,-254.76657037,0.00028569,2]
[309995607,1704283834065,-710.84,0.00028573,2]
[309995608,1704283834078,-249.62,0.00028586,2]
[309995609,1704283834090,-722.94,0.00028594,2]
[309995610,1704283834102,-348.66,0.00028637,2]
[309995611,1704283834338,-304.68419941,0.00028658,15]
[309995612,1704283834351,-6238.94044513,0.00028659,2]
[309995613,1704283834364,-249.62,0.00028663,2]
[309995614,1704283834378,-619.71248681,0.00028702,2]
[309995615,1704283834390,-348.85525554,0.00028706,15]
[309995616,1704283834402,-249.62,0.00028739,2]
[309995617,1704283834415,-348.66,0.00028787,2]
[309995618,1704283834437,-459.91,0.00028816,2]
[309995619,1704283834451,-249.62,0.00028816,2]
[309995620,1704283834462,-254.76657037,0.00028849,2]
[309995621,1704283834474,-158.05,0.00028858,2]
[309995622,1704283834485,-249.62,0.00028892,2]
[309995623,1704283834504,-658.71,0.00028898,2]
[309995624,1704283834517,-348.66,0.00028937,2]
[309995625,1704283834530,-45.55949844,0.00028969,2]
[309995626,1704283834547,-204.06050156,0.00028969,2]
[309995627,1704283834561,-300.0,0.00029,3]
[309995628,1704283834573,-1844.87855369,0.00029001,2]
[309995629,1704283834590,-630.04848623,0.00029001,2]
[309995630,1704283834601,-249.62,0.00029045,2]
[309995631,1704283834614,-348.66,0.00029087,2]
[309995632,1704283834627,-1856.9,0.00029096,2]
[309995633,1704283834642,-162.11818951,0.00029107,2]
[309995634,1704283834655,-249.62,0.00029122,2]
[309995635,1704283834668,-254.76657037,0.0002913,2]
[309995636,1704283834685,-249.62,0.00029199,2]
[309995637,1704283834700,-348.66,0.00029237,2]
[309995638,1704283834712,-249.62,0.00029275,2]
[309995639,1704283834725,-272.12686771,0.000293,4]
[309995640,1704283834737,-158.05,0.00029304,2]
[309995641,1704283834991,-534.09,0.00029313,2]
[309995642,1704283835005,-249.62,0.00029352,2]
[309995643,1704283835018,-348.66,0.00029387,2]
[309995644,1704283835030,-159.56,0.00029391,2]
[309995645,1704283835043,-254.76657037,0.0002941,2]
[309995646,1704283835055,-674.39,0.0002947,2]
[309995647,1704283835072,-348.66,0.00029537,2]
[309995648,1704283835084,-565.04439,0.00029589,14]
[309995649,1704283835096,-279.90628294,0.00029599,2]
[309995650,1704283835108,-825.3549028,0.000296,2]
[309995651,1704283835120,-106.09332891,0.00029625,2]
[309995652,1704283835136,-404.0,0.00029625,2]
[309995653,1704283835151,-164.29667109,0.00029625,2]
[309995654,1704283835163,-348.66,0.00029687,2]
[309995655,1704283835182,-254.76657037,0.0002969,2]
[309995656,1704283835194,-374.89309952,0.000297,2]
[309995657,1704283835206,-190.94965879,0.00029749,2]
[309995658,1704283835218,-158.05,0.00029749,2]
[309995659,1704283835229,-667.85045147,0.0002978,2]
[309995660,1704283835245,-6.53954853,0.0002978,2]
[309995661,1704283835257,-145239.2222,0.000298,2]
[309995662,1704283835268,-417.584,0.000298,2]
[309995663,1704283835283,-5421.5,0.000298,2]
[309995664,1704283835295,-348.66,0.00029837,2]
[309995665,1704283835308,-658.71,0.00029877,2]
[309995666,1704283835321,-299.93588338,0.00029898,2]
[309995667,1704283835333,-1000.0,0.00029898,2]
[309995668,1704283835345,-271.35070698,0.00029898,2]
[309995669,1704283835357,-1216.81610632,0.00029898,2]
[309995670,1704283835369,-1834.98908037,0.00029899,2]
[309995671,1704283835589,-12257.84075027,0.00029899,2]
[309995672,1704283835600,-5971.44303597,0.000299,2]
[309995673,1704283835617,-16936.19696403,0.000299,2]
[309995674,1704283835629,-162.11818951,0.000299,2]
[309995675,1704283835641,-170.96,0.000299,2]
[309995676,1704283835653,-1055.35,0.000299,2]
[309995677,1704283835665,-165.59105574,0.00029924,2]
[309995678,1704283835680,-186.97889632,0.00029924,2]
[309995679,1704283835696,-674.39,0.00029935,2]
[309995680,1704283835917,-159.56,0.00029944,2]
[309995681,1704283835933,-301.0,0.00029948,2]
[309995682,1704283835945,-413.02390415,0.0002996,2]
[309995683,1704283835957,-254.76657037,0.00029971,2]
[309995684,1704283835969,-348.66,0.00029987,2]
[309995685,1704283835982,-168.03532328,0.0002999,2]
[309995686,1704283835995,-304.68419941,0.00029999,15]
[309995687,1704283836008,-811.07666778,0.0003,4]
[309995688,1704283836021,-4969.19839241,0.0003,2]
[309995689,1704283836036,-2036.8691598,0.0003,2]
[309995690,1704283836052,-3807.14067406,0.0003,2]
[309995691,1704283836068,-423.98137478,0.0003,2]
[309995692,1704283836083,-3954.76781698,0.0003,2]
[309995693,1704283836099,-666.6,0.0003,2]
[309995694,1704283836113,-21269.49999999,0.0003,2]
[309995695,1704283836130,-114247.73510063,0.0003,2]
[309995696,1704283836144,-8490.63236,0.0003,2]
[309995697,1704283836158,-2032.9,0.0003,2]
[309995698,1704283836173,-3860.94553461,0.0003,2]
[309995699,1704283836189,-467.91600621,0.0003,2]
[309995700,1704283836203,-964.1504272,0.0003,2]
[309995701,1704283836217,-4600.0,0.0003,2]
[309995702,1704283836233,-6614.25905859,0.0003,2]
[309995703,1704283836248,-497.184,0.0003,2]
[309995704,1704283836274,-3948.24867536,0.0003,2]
[309995705,1704283836291,-1602.1112415,0.0003,2]
[309995706,1704283836308,-711.52918919,0.0003,2]
[309995707,1704283836323,-2086.29584386,0.0003,2]
[309995711,1704283836596,-317.27885884,0.0003,2]
[309995714,1704283836611,-5199.72779891,0.0003,2]
[309995717,1704283836631,-3298.88713344,0.0003,2]
[309995719,1704283836649,-625.78551973,0.0003,2]
[309995721,1704283836664,-8605.23431666,0.0003,2]
[309995723,1704283836683,-267.5,0.0003,2]
[309995763,1704283837157,-1218.69610545,0.0003,2]
[309995765,1704283837177,-32742.5,0.0003,2]
[309995767,1704283837193,-379.15770925,0.0003,2]
[309995966,1704283838751,-151.67,0.00027421,2]
[309995969,1704283838764,-139.57834508,0.00027726,2]
[309995971,1704283838780,-12.09165492,0.00027726,2]
[309995974,1704283838792,-151.67,0.00028031,2]
[309995976,1704283838804,-151.67,0.00028336,2]
[309995978,1704283838816,-855.5,0.0002837,10]
[309995980,1704283838828,-151.67,0.0002864,2]
[309995982,1704283838842,-151.67,0.00028945,2]
[309995985,1704283838854,-151.67,0.0002925,2]
[309995997,1704283839090,-151.67,0.00029554,2]
[309995998,1704283839103,-151.67,0.00029859,2]
[309995999,1704283839115,-3179.55393911,0.0003,2]
[309996000,1704283839130,-2226.94485658,0.0003,2]
[309996001,1704283839145,-1306.72769163,0.0003,2]
[309996002,1704283839159,-7133.400015,0.0003,2]
[309996003,1704283839176,-15712.03780504,0.0003,2]
[309996004,1704283839194,-4795.19981881,0.0003,2]
[309996005,1704283839210,-7173.32465249,0.0003,2]
[309996006,1704283839225,-6779.96348425,0.0003,2]
[309996007,1704283839238,-10049.79888367,0.0003,2]
[309996008,1704283839252,-5323.52203221,0.0003,2]
[309996009,1704283839263,-1092.4092895,0.0003,2]
[309996010,1704283839277,-1000.0,0.0003,2]
[309996011,1704283839292,-926.0,0.0003,3]
[309996012,1704283839304,-288.24494481,0.0003,7]
[309996014,1704283839315,-3103.17403164,0.0003,7]
[309996016,1704283839328,-8806.28564995,0.0003,4]
[309996018,1704283839340,-23546.37231973,0.0003,4]
[309996019,1704283839355,-3811.87052287,0.0003,4]
[309996020,1704283839371,-3038.56868843,0.0003,4]
[309996021,1704283839386,-579.92706057,0.0003,4]
[309996022,1704283839406,-1143.85157393,0.0003,4]
[309996023,1704283839421,-476.54,0.0003,4]
[309996024,1704283839442,-1540.8,0.0003,4]
[309996025,1704283839456,-44009.0,0.0003,4]
[309996026,1704283839470,-46020.0,0.0003,4]
[309996027,1704283839487,-8446.97725,0.0003,4]
[309996028,1704283839512,-2898.06629765,0.0003,4]
[309996029,1704283839527,-450.156,0.0003,4]
[309996030,1704283839547,-1285.22235789,0.0003,4]
[309996031,1704283839573,-951.26132272,0.0003,4]
[309996032,1704283839613,-3379.13237557,0.0003,4]
[309996033,1704283839627,-84918.8133728,0.0003,4]
[309996034,1704283839640,-474.528,0.0003,4]
[309996035,1704283839653,-12776.96938,0.0003,4]
[309996036,1704283839667,-5871.73000001,0.0003,4]
[309996037,1704283839686,-10226.7165,0.0003,4]
[309996047,1704283839882,-27428.41251858,0.0003,4]
[309996049,1704283839897,-3113.29933442,0.0003,4]
[309996053,1704283839962,-2325.11999989,0.0003,4]
[309996054,1704283839977,-10380.78713491,0.0003,4]
[309996055,1704283839991,-808.86397626,0.0003,4]
[309996056,1704283840003,-400.0,0.0003,2]
[309996057,1704283840016,-523.51229323,0.0003009,2]
[309996058,1704283840041,-150.87770677,0.0003009,2]
[309996059,1704283840054,-1000.0,0.00030136,2]
[309996060,1704283840066,-1000.0,0.00030136,2]
[309996061,1704283840079,-1000.0,0.00030136,2]
[309996062,1704283840091,-1000.0,0.00030136,2]
[309996063,1704283840102,-1000.0,0.00030136,2]
[309996064,1704283840113,-1000.0,0.00030136,2]
[309996065,1704283840125,-1000.0,0.00030136,2]
[309996066,1704283840140,-1000.0,0.00030136,2]
[309996067,1704283840151,-1000.0,0.00030136,2]
[309996068,1704283840163,-1000.0,0.00030136,2]
[309996069,1704283840178,-1000.0,0.00030136,2]
[309996070,1704283840193,-1000.0,0.00030136,2]
[309996071,1704283840205,-1000.0,0.00030136,2]
[309996072,1704283840217,-1000.0,0.00030136,2]
[309996073,1704283840229,-1000.0,0.00030136,2]
[309996074,1704283840242,-1000.0,0.00030136,2]
[309996075,1704283840253,-447.68,0.00030136,2]
[309996076,1704283840265,-348.66,0.00030137,2]
[309996077,1704283840275,-151.67,0.00030164,2]
[309996078,1704283840287,-158.05,0.00030195,2]
[309996079,1704283840299,-674.39,0.00030245,2]
[309996080,1704283840311,-254.76657037,0.00030251,2]
[309996081,1704283840322,-459.91,0.00030257,2]
[309996086,1704283840333,-348.66,0.00030287,2]
[309996091,1704283840351,-366.99,0.00030316,2]
[309996095,1704283840363,-206.0,0.00030382,2]
[309996098,1704283840375,-322.90085,0.00030382,2]
[309996101,1704283840387,-234.40103,0.00030398,2]
[309996103,1704283840398,-674.39,0.000304,2]
[309996104,1704283840409,-348.66,0.00030437,2]
[309996106,1704283840420,-724.44,0.00030494,2]
[309996109,1704283840436,-159.56,0.00030497,2]
[309996110,1704283840449,-234.40103,0.00030498,2]
[309996113,1704283840461,-254.76657037,0.00030532,2]
[309996115,1704283840472,-674.39,0.00030556,2]
[309996117,1704283840483,-348.66,0.00030587,2]
[309996119,1704283840500,-234.40103,0.00030598,2]
[309996121,1704283840514,-514.40879808,0.00030627,2]
[309996123,1704283840524,-158.05,0.0003064,2]
[309996125,1704283840537,-565.04439,0.00030685,14]
[309996127,1704283840549,-234.40103,0.00030698,2]
[309996129,1704283840562,-534.09,0.00030709,2]
[309996130,1704283840574,-674.39,0.00030711,2]
[309996131,1704283840586,-348.66,0.00030737,2]
[309996132,1704283840597,-234.40103,0.00030798,2]
[309996133,1704283840608,-1000.0,0.000308,2]
[309996135,1704283840618,-14740.4435,0.000308,2]
[309996137,1704283840630,-254.76657037,0.00030812,2]
[309996138,1704283840641,-153.84,0.00030849,2]
[309996139,1704283840652,-658.71,0.00030855,2]
[309996140,1704283840666,-674.39,0.00030866,2]
[309996141,1704283840681,-348.66,0.00030887,2]
[309996142,1704283840692,-234.40103,0.00030898,2]
[309996143,1704283840703,-1132.8883,0.000309,2]
[309996144,1704283840714,-6079.2175,0.000309,2]
[309996145,1704283840725,-387.3526,0.000309,2]
[309996147,1704283840737,-155.0,0.000309,2]
[309996148,1704283840749,-600.0,0.000309,11]
[309996149,1704283840761,-1259.384794,0.00030943,7]
[309996169,1704283840990,-234.40103,0.00030998,2]
[309996171,1704283841009,-187.54063978,0.00031,3]
[309996174,1704283841030,-162.45936022,0.00031,3]
[309996177,1704283841072,-10000.0,0.00031,2]
[309996180,1704283841096,-674.39,0.00031021,2]
[309996182,1704283841107,-348.66,0.00031037,2]
[309996184,1704283841118,-159.56,0.0003105,2]
[309996186,1704283841130,-158.05,0.00031086,2]
[309996188,1704283841141,-217.73065178,0.00031092,2]
[309996191,1704283841156,-37.03591859,0.00031092,2]
[309996192,1704283841167,-234.40103,0.00031098,2]
[309996194,1704283841185,-926.082,0.00031122,2]
[309996197,1704283841200,-1846.0,0.00031122,2]
[309996198,1704283841213,-3026.0,0.00031122,2]
[309996199,1704283841227,-674.39,0.00031176,2]
[309996200,1704283841238,-348.66,0.00031186,2]
[309996212,1704283841422,-234.40103,0.00031198,2]
[309996213,1704283841445,-152.18200251,0.00031232,2]
[309996214,1704283841457,-995.701,0.00031264,2]
[309996215,1704283841467,-611.313,0.00031264,2]
[309996216,1704283841480,-603.486,0.00031264,2]
[309996217,1704283841493,-492.0,0.00031286,3]
[309996218,1704283841513,-234.40103,0.00031298,2]
[309996219,1704283841525,-175.73,0.000313,2]
[309996220,1704283841537,-674.39,0.00031331,2]
[309996221,1704283841549,-348.66,0.00031336,2]
[309996222,1704283841560,-186.97889631,0.0003135,2]
[309996223,1704283841571,-254.76657037,0.00031373,2]
[309996224,1704283841584,-234.40103,0.00031398,2]
[309996225,1704283841596,-710.92590431,0.000314,2]
[309996226,1704283841608,-7500.0,0.000314,2]
[309996227,1704283841623,-1007.709,0.0003144,2]
[309996228,1704283841635,-1138.0,0.0003144,2]
[309996229,1704283841646,-1923.0,0.0003144,2]
[309996230,1704283841657,-750.0,0.0003144,2]
[309996231,1704283841668,-237.879,0.0003144,2]
[309996232,1704283841685,-430.482,0.0003144,2]
[309996233,1704283841702,-321.032,0.0003144,2]
[309996234,1704283841713,-505.0,0.0003144,2]
[309996235,1704283841733,-5583.368,0.0003144,2]
[309996236,1704283841748,-2925.73,0.0003144,2]
[309996237,1704283841762,-4388.0,0.0003144,2]
[309996238,1704283841775,-2289.116,0.0003144,2]
[309996239,1704283841787,-19633.0,0.0003144,2]
[309996240,1704283841799,-1026.0,0.0003144,2]
[309996241,1704283841811,-674.39,0.00031486,2]
[309996242,1704283841824,-234.40103,0.00031498,2]
[309996243,1704283841843,-509.31882025,0.00031499,5]
[309996244,1704283841856,-86758.75269232,0.000315,2]
[309996245,1704283841868,-500.0,0.000315,2]
[309996246,1704283841882,-1868.0,0.000315,2]
[309996247,1704283841894,-382.0,0.000315,2]
[309996248,1704283841905,-158.05,0.00031531,2]
[309996249,1704283841919,-234.40103,0.00031598,2]
[309996250,1704283841947,-159.56,0.00031603,2]
[309996251,1704283841969,-1000.0,0.00031633,2]
[309996252,1704283841996,-674.39,0.00031641,2]
[309996253,1704283842011,-254.76657037,0.00031653,2]
[309996254,1704283842024,-459.91,0.00031697,2]
[309996255,1704283842036,-234.40103,0.00031698,2]
[309996256,1704283842048,-28860.3068,0.000317,2]
[309996257,1704283842060,-500.0,0.00031744,2]
[309996258,1704283842072,-565.04439,0.00031781,14]
[309996259,1704283842084,-153.84,0.00031784,2]
[309996260,1704283842095,-206.0,0.00031792,4]
[309996261,1704283842106,-2367.637,0.00031794,2]
[309996262,1704283842117,-1237.455,0.00031794,2]
[309996263,1704283842128,-942.0,0.00031794,2]
[309996264,1704283842140,-674.39,0.00031796,2]
[309996265,1704283842152,-234.40103,0.00031798,2]
[309996266,1704283842164,-49509.75354068,0.000318,2]
[309996267,1704283842180,-178.69908156,0.000318,3]
[309996268,1704283842192,-4058.584218,0.000318,7]
[309996269,1704283842204,-4058.584218,0.000318,7]
[309996270,1704283842216,-191.44334,0.000318,7]
[309996271,1704283842228,-191.44334,0.000318,7]
[309996272,1704283842239,-187.599621,0.000318,7]
[309996286,1704283842714,-187.599621,0.000318,7]
[309996287,1704283842726,-161.86705,0.000318,7]
[309996288,1704283842738,-161.86705,0.000318,7]
[309996289,1704283842749,-151.0,0.000318,7]
[309996293,1704283842759,-151.0,0.000318,7]
[309996299,1704283842772,-658.71,0.00031834,2]
[309996303,1704283842785,-175.73,0.00031848,2]
[309996309,1704283842797,-1046.0,0.0003185,5]
[309996314,1704283842810,-214.87,0.00031888,2]
[309996319,1704283842822,-234.40103,0.00031898,2]
[309996322,1704283842833,-47378.02936562,0.000319,2]
[309996424,1704283843255,-71005.07963438,0.000319,2]
[309996431,1704283843267,-150.0,0.000319,2]
[309996443,1704283843279,-284.57161411,0.000319,2]
[309996453,1704283843291,-1300.0,0.000319,11]
[309996464,1704283843305,-150.71580017,0.000319,2]
[309996479,1704283843319,-150.71580004,0.000319,2]
[309996495,1704283843331,-150.71580004,0.000319,2]
[309996507,1704283843343,-313.4,0.0003193,2]
[309996519,1704283843355,-254.76657037,0.00031934,2]
[309996530,1704283843367,-674.39,0.00031951,2]
[309996540,1704283843378,-167.06,0.00031958,2]
[309996550,1704283843391,-172.82,0.00031958,120]
[309996560,1704283843410,-158.05,0.00031976,2]
[309996565,1704283843423,-234.40103,0.00031998,2]
[309996571,1704283843438,-296.83355854,0.00032,4]
[309996576,1704283843449,-37082.62050325,0.00032,7]
[309996581,1704283843460,-90942.9156472,0.00032,2]
[309996586,1704283843471,-3000.0,0.00032,2]
[309996589,1704283843482,-200.0,0.00032,2]
[309996593,1704283843498,-151.0,0.00032,7]
[309996598,1704283843515,-151.0,0.00032,7]
[309996602,1704283843528,-4058.584218,0.00032,7]
[309996606,1704283843540,-4058.584218,0.00032,7]
[309996610,1704283843553,-191.44334,0.00032,7]
[309996614,1704283843565,-191.44334,0.00032,7]
[309996618,1704283843576,-255.78,0.00032,7]
[309996622,1704283843588,-5000.0,0.00032,2]
[309996626,1704283843600,-5000.0,0.00032,2]
[309996630,1704283843612,-6713.5327,0.00032,2]
[309996634,1704283843625,-150.0,0.00032,2]
[309996637,1704283843638,-2500.0,0.00032,3]
[309996641,1704283843649,-5713.0,0.00032081,2]
[309996644,1704283843661,-234.40103,0.00032098,2]
[309996648,1704283843673,-534.09,0.00032105,2]
[309996650,1704283843689,-674.39,0.00032107,2]